Cogmind - Beta 14 @@@ ROGUE MODE // 2024.08.12 @ 18:45:50 Player: jimmyl Result: Destroyed by Explosive Trap Performance ------------- Evolutions (2) 1000 Regions Visited (4) 800 Robots Destroyed (36) 180 Value Destroyed (1113) 1113 Prototype IDs (1) 20 Alien Tech Used (0) 0 Bonus (231) 231 TOTAL SCORE: 3344 Bonus ------- Follower Combat Kills 231 Cogmind --------- Core Integrity 0/550 Matter 266/300 Energy 79/100 System Corruption 0% Temperature Cool (2) Movement Hovering (56) Location -8/Storage Parts ------- > --- POWER (2) -------- (None) > --- PROPULSION (3) --- Improved Hover Unit Improved Hover Unit > --- UTILITY (4) ------ (None) > --- WEAPON (2) ------- (None) > --- INVENTORY (5) ---- Compact Wheel Cryofiber Web Hacking Suite Peak State ------------ > --- POWER ------------ Improved Ion Engine > --- PROPULSION ------- Light Treads Light Treads > --- UTILITY ---------- Improved Heat Sink Medium Storage Unit Signal Interpreter Hardened Medium Armor Plating > --- WEAPON ----------- Shotgun Advanced EMP Blaster > --- INVENTORY -------- Compact Wheel Improved Hover Unit Improved Hover Unit Improved Hover Unit Improved Hover Unit Cryofiber Web Improved Heat Sink Hacking Suite Shotgun Shotgun [Rating: 20] Favorites ----------- Power Ion Engine Engine Ion Engine Propulsion Light Treads Treads Light Treads Leg Aluminum Leg Hover Unit Improved Hover Unit Utility Medium Storage Unit Device Improved Heat Sink Storage Medium Storage Unit Processor Signal Interpreter Protection Hardened Medium Armor Plating Weapon Shotgun Energy Gun Small Laser Ballistic Gun Shotgun Launcher EMP Blaster Build | -11 -10 -9 -8 -8 ------- Run | Yrd Mat Mat Mat Sto Slots Evolved 4 | . . 2 2 . Power 1 | . . . 1 . Propulsion 1 | . . . 1 . Utility 2 | . . 2 . . Weapon . | . . . . . Parts Attached 21 | . 7 7 1 6 Power 2 | . 1 . 1 . Engine 2 | . 1 . 1 . Core . | . . . . . Reactor . | . . . . . Propulsion 5 | . 2 1 . 2 Treads 3 | . 2 1 . . Leg . | . . . . . Wheel . | . . . . . Hover 2 | . . . . 2 Flight . | . . . . . Utility 7 | . 2 5 . . Device 2 | . . 2 . . Storage 2 | . 2 . . . Processor 1 | . . 1 . . Hackware . | . . . . . Protection 2 | . . 2 . . Artifact . | . . . . . Weapon 7 | . 2 1 . 4 Energy Gun . | . . . . . Energy Cannon . | . . . . . Ballistic Gun 4 | . 2 . . 2 Ballistic Cannon . | . . . . . Launcher 3 | . . 1 . 2 Special Weapon . | . . . . . Impact Weapon . | . . . . . Slashing Weapon . | . . . . . Piercing Weapon . | . . . . . Special Melee Weapon . | . . . . . Unidentified Prototypes 1 | . . . . 1 Parts Lost 7 | . . . . 7 Power 1 | . . . . 1 Propulsion 2 | . . . . 2 Utility 1 | . . . . 1 Weapon 3 | . . . . 3 Highest Loss Streak 7 | . . . . 7 To Critical Strikes . | . . . . . Average Slot Usage (%) 88 | . 98 92 81 72 Engine 11 | . 14 11 9 8 Treads 16 | . 7 22 18 15 Leg 5 | . 20 . . . Device 6 | . . 8 9 8 Storage 17 | . 27 16 9 8 Processor 5 | . . 6 9 8 Protection 4 | . . 5 9 8 Energy Gun 2 | . 10 . . . Ballistic Gun 16 | . 17 19 9 13 Launcher 2 | . . 2 9 2 Peak Build Rating 20 | . 10 17 18 20 Average Rating 12 | . 7 12 17 16 On Entrance 11 | 6 6 10 17 18 Naked Turns 12 | . . . . 12 Heaviest Build 33 | 10 22 31 33 33 Greatest Support 40 | 20 40 40 40 40 Greatest Overweight (x) . | . . . . . Average Overweight (x) . | . . . . . Largest Inventory Capacity 10 | . 10 10 10 10 Average Capacity 9 | . 9 10 10 9 Most Carried 10 | . 9 10 10 10 Average Carried 8 | . 7 9 9 8 Final Capacity 10 | 8 10 10 10 5 Final Carried 10 | 6 9 10 10 3 Class Distribution -------------------- 88% | Mutant 11% | Commander-Mutant Dominant Class ---------------- Mutant | -10/Materials Mutant | -9/Materials Mutant | -8/Materials Commander-Mutant | -8/Storage Resources | -11 -10 -9 -8 -8 ----------- Run | Yrd Mat Mat Mat Sto Matter Collected 755 | 200 95 346 56 58 Remotely . | . . . . . Salvage Created 1202 | . 259 581 238 124 Parts 77 | . 23 38 11 5 Haulers Intercepted . | . . . . . Recyclers Shooed . | . . . . . Parts Field Recycled . | . . . . . Retrieved Matter . | . . . . . Parts Self-Destructed . | . . . . . Prevented . | . . . . . Kills | -11 -10 -9 -8 -8 ------- Run | Yrd Mat Mat Mat Sto Combat Hostiles Destroyed 29 | . 7 14 4 4 Guns 16 | . 7 7 . 2 AOE 11 | . . 7 3 1 Classes Destroyed 8 | . 5 1 . 2 Worker 2 | . 1 . 1 . Operator 2 | . 1 1 . . Watcher 3 | . 1 2 . . Swarmer 6 | . 3 3 . . Grunt 17 | . 4 8 3 2 Brawler 1 | . . . . 1 Sentry 4 | . . 3 1 . Demolisher 1 | . . . . 1 Best Kill Streak 6 | . 6 5 5 2 Combat Bots Only 5 | . 5 5 4 2 Max Kills in Single Turn 3 | . 1 3 3 1 Gunslinging . | . . . . . Exploded 3 | . . 3 3 1 Melee . | . . . . . Uniques/NPCs Destroyed . | . . . . . Combat | -11 -10 -9 -8 -8 -------- Run | Yrd Mat Mat Mat Sto Hostile Shots Fired 165 | . 32 53 12 68 Missed 53 | . 8 19 7 19 Damage Taken 2197 | . 321 431 77 1368 Core 662 | . 74 37 32 519 Absorbed by Shields . | . . . . . Core Remaining (%) 86 | 100 70 90 . . Volleys Fired 89 | . 32 34 11 12 Largest 2 | . 2 2 1 2 Hottest 60 | . 60 46 33 46 Shots Fired 150 | . 64 60 11 15 Gun 122 | . 64 52 . 6 Cannon . | . . . . . Launcher 28 | . . 8 11 9 Special . | . . . . . Kinetic 91 | . 33 52 . 6 Thermal 31 | . 31 . . . Explosive . | . . . . . Electromagnetic 28 | . . 8 11 9 Robot Hit Streak 17 | . 17 10 4 5 Robot Miss Streak 6 | . 3 6 2 2 Penetration Max . | . . . . . Secondary Targets 1 | . . . . 1 Max Gunslinging Chain 1 | . . . . 1 Shots Hit Robots 101 | . 40 46 4 11 Core Hits 76 | . 21 33 10 12 Critical Kills . | . . . . . Critical Parts Destroyed . | . . . . . Critical Strikes . | . . . . . Melee Attacks . | . . . . . Impact . | . . . . . Slashing . | . . . . . Piercing . | . . . . . Sneak Attacks . | . . . . . Combat Hostiles . | . . . . . Follow-up Attacks . | . . . . . Damage Inflicted 2423 | . 435 953 471 564 Guns 1180 | . 388 660 . 132 Cannons . | . . . . . Explosions 1243 | . 47 293 471 432 Melee . | . . . . . Ramming . | . . . . . Kinetic 945 | . 153 660 . 132 Thermal 343 | . 235 17 91 . Explosive 47 | . 47 . . . Electromagnetic 1088 | . . 276 380 432 Impact . | . . . . . Slashing . | . . . . . Piercing . | . . . . . Highest Corruption . | . . . . . Average Corruption . | . . . . . Corruption Purged . | . . . . . Corruption Blocked . | . . . . . Overload Shots . | . . . . . Overflow Damage . | . . . . . Projectiles . | . . . . . Explosions . | . . . . . Melee . | . . . . . Knockbacks . | . . . . . Impact . | . . . . . Kinetic . | . . . . . Secondary . | . . . . . Self-Inflicted Damage 52 | . 52 . . . Shots 1 | . 1 . . . Rammed . | . . . . . Targets Rammed . | . . . . . Kicked . | . . . . . Crushed . | . . . . . Highest Temperature 103 | . 103 1 . 2 Average Temperature 40 | . 43 1 . 2 Received Heat Transfer 558 | . 129 159 36 234 Siege Activations . | . . . . . Robots Corrupted 2 | . . . 1 1 Combat Hostiles 2 | . . . 1 1 Parts Fried 5 | . . . 3 2 Impact Corruptions . | . . . . . Robots Melted . | . . . . . Combat Hostiles . | . . . . . Parts Melted . | . . . . . Heat Transferred 675 | . 525 50 100 . Parts Sabotaged . | . . . . . Parts Stolen . | . . . . . Parts Stripped . | . . . . . Power Chain Reactions 4 | . . 2 2 . Alert | -11 -10 -9 -8 -8 ------- Run | Yrd Mat Mat Mat Sto Peak Influence 457 | . 281 299 251 457 Initial 122 | . . 33 122 105 Average 194 | . 167 188 169 261 Maximum Alert Level 2 | . 1 1 1 2 Low Security (%) 47 | . 59 42 66 28 Level 1 50 | . 40 57 33 62 Level 2 1 | . . . . 9 Level 3 . | . . . . . Level 4 . | . . . . . Level 5 . | . . . . . High Security . | . . . . . Max Security . | . . . . . Squads Dispatched 7 | . 1 2 1 3 Investigation 1 | . . 1 . . Extermination . | . . . . . Reinforcement 4 | . 1 1 1 1 Assault 2 | . . . . 2 Garrison . | . . . . . Intercept . | . . . . . Searches Triggered . | . . . . . Construction Impeded . | . . . . . Haulers Reinforced . | . . . . . Active Scanning Responses . | . . . . . Cargo Convoy Interrupts . | . . . . . Stealth | -11 -10 -9 -8 -8 --------- Run | Yrd Mat Mat Mat Sto Distress Signals 5 | . 1 2 1 1 Communications Jammed . | . . . . . Distress Signals . | . . . . . Times Spotted 62 | . 14 18 5 25 Peak Tracking Total 15 | . 5 6 3 15 Tactical Retreats 1 | . . . . 1 Traps | -11 -10 -9 -8 -8 ------- Run | Yrd Mat Mat Mat Sto Traps Triggered 3 | . . 1 . 2 Indirectly 1 | . . 1 . . Trap Hack Attempts . | . . . . . Triggered . | . . . . . Disarmed . | . . . . . Reprogrammed . | . . . . . Reused . | . . . . . Traps Extracted . | . . . . . Installed . | . . . . . Triggered . | . . . . . Machines | -11 -10 -9 -8 -8 ---------- Run | Yrd Mat Mat Mat Sto Machines Disabled 2 | . 1 . . 1 Max in Single Turn 1 | . 1 . . 1 Machines Repaired . | . . . . . Machines Dismantled . | . . . . . Machines Sabotaged . | . . . . . Overloaded Fab Kills . | . . . . . Hacking | -11 -10 -9 -8 -8 --------- Run | Yrd Mat Mat Mat Sto Machines Accessed 8 | . 3 2 3 . Terminals 8 | . 3 2 3 . Fabricators . | . . . . . Repair Stations . | . . . . . Recycling Units . | . . . . . Scanalyzers . | . . . . . Garrison Access . | . . . . . Total Hacks 19 | . 7 7 5 . Successful 6 | . 3 3 . . Failed 13 | . 4 4 5 . Catastrophic 3 | . 1 . 2 . Database Lockouts . | . . . . . Manual 12 | . 2 5 5 . Terminals 19 | . 7 7 5 . Fabricators . | . . . . . Repair Stations . | . . . . . Recycling Units . | . . . . . Scanalyzers . | . . . . . Garrison Access . | . . . . . Terminal Hacks 4 | . 2 2 . . Branch Access Points 2 | . 1 1 . . Zone Layout 2 | . 1 1 . . Fabricator Hacks . | . . . . . Repair Station Hacks . | . . . . . Recycling Unit Hacks . | . . . . . Scanalyzer . | . . . . . Garrison Access Hacks . | . . . . . Unauthorized Hacks 2 | . 1 1 . . Terminals 2 | . 1 1 . . Disrupt 2 | . 1 1 . . Fabricators . | . . . . . Repair Stations . | . . . . . Recycling Units . | . . . . . Scanalyzers . | . . . . . Garrison Access . | . . . . . Data Cores Recovered 1 | . 1 . . . Used . | . . . . . Hacking Detections 7 | . 3 1 3 . Full Trace Events . | . . . . . Feedback Events . | . . . . . Feedback Blocked . | . . . . . Robot Schematics Acquired . | . . . . . Robots Built . | . . . . . Authchips . | . . . . . Time . | . . . . . Total Robot Build Rating . | . . . . . Part Schematics Acquired . | . . . . . Parts Built . | . . . . . Authchips . | . . . . . Time . | . . . . . Total Part Build Rating . | . . . . . Parts Repaired . | . . . . . Time . | . . . . . Parts Recycled . | . . . . . Recycled Matter . | . . . . . Retrieved Matter . | . . . . . Retrieved Components . | . . . . . Parts Scanalyzed . | . . . . . Part Schematics Acquired . | . . . . . Parts Damaged . | . . . . . Bothacking | -11 -10 -9 -8 -8 ------------ Run | Yrd Mat Mat Mat Sto Used RIF Installer . | . . . . . Robots Hacked . | . . . . . Non-combat . | . . . . . Combat . | . . . . . Robot Hacks Applied . | . . . . . Relay Couplers Released . | . . . . . Fabnet Peak Effective % . | . . . . . Robots Rewired . | . . . . . Allies Hacked . | . . . . . Hacks Repelled . | . . . . . Allies | -11 -10 -9 -8 -8 -------- Run | Yrd Mat Mat Mat Sto Total Allies 12 | . . . . 12 Largest Group 12 | . . . . 12 Highest-Rated Group 235 | . . . . 235 Highest-Rated Ally 31 | . . . . 31 Total Orders . | . . . . . Ally Attacks 80 | . . . . 80 Total Damage 1070 | . . . . 1070 Kills 10 | . . . . 10 Allies Corrupted . | . . . . . Allies Melted . | . . . . . Intel | -11 -10 -9 -8 -8 ------- Run | Yrd Mat Mat Mat Sto Robot Analysis Total . | . . . . . Derelict Logs Recovered . | . . . . . Drone Launches . | . . . . . Drone Recoveries . | . . . . . Exploration | -11 -10 -9 -8 -8 ------------- Run | Yrd Mat Mat Mat Sto Turns Passed 1401 | . 403 549 166 283 Spaces Moved 708 | 1 212 266 88 141 Core 24 | . . . . 24 Treads 512 | . 61 266 88 97 Legs 152 | 1 151 . . . Wheels . | . . . . . Hover 20 | . . . . 20 Flight . | . . . . . Fastest Speed 50 | 120 120 160 160 50 Average Speed 144 | 120 131 160 160 126 Slowest Speed 160 | 120 160 160 160 160 Overloaded Moves . | . . . . . Propulsion Burnouts . | . . . . . Robots Hopped . | . . . . . Cave-ins Triggered . | . . . . . Exploration Rate (%) 21 | 1 38 27 13 28 Regions Visited 4 Branch Regions 1 Pre-discovered Areas . | . . . . . Known Exits Taken 2 | . . 1 1 . Unknown Exits Taken 2 | 1 1 . . . Scrap Searched . | . . . . . Spaces Dug . | . . . . . Terrain Destroyed 48 | . 32 7 9 . Melee . | . . . . . Projectile . | . . . . . AOE 48 | . 32 7 9 . Terrain Rammed . | . . . . . Walls Destroyed . | . . . . . Machines Disabled . | . . . . . Actions | -11 -10 -9 -8 -8 --------- Run | Yrd Mat Mat Mat Sto Total 945 | . 280 330 103 232 Wait 101 | . 16 14 2 69 Move 704 | . 211 265 87 141 Hop . | . . . . . Pick Up 11 | . 7 3 1 . Fast Attach 10 | . 3 6 . 1 Attach 9 | . 3 . 1 5 Detach 2 | . . . . 2 Swap 2 | . 1 1 . . Drop 17 | . 7 7 1 2 Fire 89 | . 32 34 11 12 Melee . | . . . . . Ram . | . . . . . Kick . | . . . . . Crush . | . . . . . Escape Stasis . | . . . . . Rewire . | . . . . . Trap . | . . . . . Miscellaneous . | . . . . . Route ------- -11/Scrapyard -10/Materials (discovered 2 exits: *Mat / *Min) -9/Materials (discovered 3 exits: *Mat / Min x2) -8/Materials -8/Storage History --------- Turn | Location | Event 1 | -11/Scrapyard | Discovered new exit (range 0) 1 | -11/Scrapyard | Entered Materials 124 | -10/Materials | Discovered new exit (range 6) 326 | -10/Materials | Build established: Mutant 335 | -10/Materials | Discovered new exit (range 15) 364 | -10/Materials | Identified exit to Mines 404 | -10/Materials | Entered another Materials area 404 | -9/Materials | Evolved 2 slots: Utility x2 782 | -9/Materials | Discovered new exit (range 5) 789 | -9/Materials | Identified exit to Materials 887 | -9/Materials | Identified exit to Mines 953 | -9/Materials | Entered another Materials area 953 | -8/Materials | Evolved 2 slots: Power x1, Propulsion x1 1094 | -8/Materials | Discovered new exit (range 13) 1118 | -8/Materials | Identified exit to Storage 1119 | -8/Materials | Entered Storage 1183 | -8/Storage | Assisted by bots powering up and referring to "LRC-V3" 1260 | -8/Storage | Met a pair of Derelict thieves 1376 | -8/Storage | Core integrity fell below 50% 1377 | -8/Storage | Released all parts (3) 1379 | -8/Storage | Core integrity fell below 20% 1382 | -8/Storage | Lost 11 allies 1402 | -8/Storage | Destroyed by Explosive Trap Last Messages --------------- 01362_ B-36 Bruiser destroyed. 01365_ D-53 Grenadier destroyed. 01365_ Switching to secondary target: B-36 Bruiser. 01368_ Shotgun destroyed. 01370_ Imp. Ion Engine destroyed. 01370_ Hrd. Medium Armor Plating destroyed. 01372_ B-36 Bruiser destroyed. 01373_ The unstable cave ceiling collapses. 01373_ Shotgun destroyed. 01374_ Adv. EMP Blaster destroyed. 01375_ The unstable cave ceiling collapses. 01377_ G-47 Trooper misfires. 01377_ Released Imp. Heat Sink. 01377_ Released Signal Interpreter. 01377_ Released Med. Storage Unit. 01378_ D-53 Grenadier destroyed. 01381_ K-01 Serf collects debris. 01384_ G-50 Soldier misfires. 01402_ Triggered Explosive Trap. 01402_ An explosion rips through the floor. Map ----- +----------------------------------------------------+ | | | | | | | | | | | | | | | | | | | | | | | | | | | | | ????????????????????????????????????????????? | | ????????????????????????????????????????????? | | ????????????????????????????????????????????? | | ????????????????????????????????????????????? | | ????????????????????????????????????????????? | | ????????????????????????????????????????????? | | ?????????????????????#+###+##????##?????????? | | ?????????????????????# #####T#"????????? | | ?????????????????????# T "????????? | | ?????????????????????# "????????? | | ?????????????????????# #???????????? | | ?????????????????????# @ """ #???????????? | | ?????????????????????# """ #???????????? | | ?????????????????????# """ ##########??? | | ?????????????????????# #??? | | ?????????????????????#### k ######## #??? | | ????????????????????????#k####+#######?# #??? | | ????????????????????????# ## #?# #??? | | ????????????????????????#k## """ """ ###+###? | | ????????????????????????# ## """%""" # #? | | ????????????????????????# ?# """ """ # [#? | | ????????????????????????#k?# + % #? | | ???????????????????????? ## = # = #? | | ???????????????????????? # # #? | | ???????????????????????? ## % # #? | | ???????????????????????? ?##### #########? | | ???????????????????????? ?## [% # | | ???????????????????????? ??# /%/= # | | ???????????????????????????# = # """ """ # | | ???????????????????????????## [ """ """?? | | ???????????????????????????## %[[[ %""" """?? | | ???????????????????????????# [ [ """ ""??? | | ???????????????????????????####[% "" """?? | | ????????????????????????????## =[= # | | ???????????????????????###### # ######?? | | ?????????????????????###"T"# #??????? | +----------------------------------------------------+ Best States ------------- Heat Dissipation 45 Energy Generation 12 Energy Capacity 265 Matter Stores 350 Matter Capacity 350 Sight Range 16 Terrain Scan Density 10 Armor Coverage 225 Evasion (%) 55 Recoil Reduction 2 Item Schematics ----------------- None Robot Schematics ------------------ None Fabricated ------------ Nothing Alien Tech Used ----------------- None Achievements -------------- None Challenges ------------ None Game ------ Seed TerrainSalvagingShield Manual? 0 Play Time 00:15:48 Cumulative 96.2 hours Start 2024.08.12 @ 09:40:33 End 2024.08.12 @ 18:45:50 Sessions 5 Manual Loads 0 Difficulty Rogue Special Mode None Game No. 164 Rogue 163 Adventurer 1 Explorer 0 Win Type - Total 0 Types 0/0/0/0/0/0/0/0/0 Lore% 57 Gallery% 61 Achievement% 48 Wizard Run 0 Options --------- Layout 1 ASCII 0 Keyboard 0 Movement Mouse Keybinds 0 Fullscreen 2 Font 20/SmallcapsGlow Map View 54x42 Zoom Use 0% Tactical HUD 1 Map Filters NONE Filters NONE Steam 0 RUN: b1d7cadc-2e88-4a1c-9482-4999f195f545